[Event "Gibraltar Amateurs B 2020"]
[Site "Caleta"]
[Date "2020.01.27"]
[Round "3.7"]
[White "Salas Martin, Javier"]
[Black "Kovacevic, Aleksandar S"]
[Result "1-0"]
[ECO "E06"]
[WhiteElo "1738"]
[BlackElo "1804"]
[Annotator "NA"]
[PlyCount "133"]
[EventDate "2020.01.20"]
[EventType "swiss"]
[EventCountry "GGB"]
[SourceTitle "playchess.com"]
[Source "ChessBase"]
[SourceQuality "1"]
[TimeControl "6600+10"]

1. d4 {[%emt 0:00:35]} Nf6 {[%emt 0:01:06]} 2. c4 {[%emt 0:00:15]} e6 {[%emt 0:01:01]} 3. Nf3 {[%emt 0:00:13]} d5 {[%emt 0:03:18]} 4. g3 {[%emt 0:00:17]} c6 {[%emt 0:06:16]} 5. Bg2 {[%emt 0:00:19]} Be7 {[%emt 0:02:27]} 6. O-O {[%emt 0:00:07]} O-O {[%emt 0:00:03]} 7. Qc2 {[%emt 0:01:02]} b6 {[%emt 0:02:00]} 8. b3 {[%emt 0:01:20]} a5 {[%emt 0:04:13]} 9. Bb2 {[%emt 0:00:49]} Na6 {[%emt 0:11:01]} 10. a3 {[%emt 0:08:32]} Bb7 {[%emt 0:03:59]} 11. Nbd2 {[%emt 0:02:37]} Rc8 {[%emt 0:01:51]} 12. e4 {[%emt 0:04:39]} dxe4 {[%emt 0:07:28]} 13. Nxe4 {[%emt 0:00:54]} c5 $2 {[%emt 0:02:48]} (13... Nxe4 $16 14. Qxe4 Nc7) 14. Nfg5 $2 {[%emt 0:07:31]} ({White must play} 14. Nxf6+ $18 Bxf6 {[#]} 15. Ng5 $1 {[%mdl 576] Discovered Attack} Bxg5 16. Bxb7) 14... Bxe4 {[%emt 0:04:58]} 15. Nxe4 {[%emt 0:00:41]} Qc7 {[%emt 0:02:14]} 16. Nxf6+ $2 {[%emt 0:12:00]} (16. d5 $1 $18) 16... Bxf6 {[%emt 0:00:16]} 17. d5 {[%emt 0:00:08]} Bxb2 {[%emt 0:03:25]} 18. Qxb2 {[%emt 0:00:12]} exd5 {[%emt 0:00:53]} 19. Bxd5 {[%emt 0:00:35]} Nb8 {[%emt 0:01:34]} 20. b4 {[%emt 0:07:30]} Nc6 {[%emt 0:03:15]} 21. Bxc6 {[%emt 0:05:51]} Qxc6 {[%emt 0:01:20]} 22. bxa5 {[%emt 0:01:29]} bxa5 {[%emt 0:00:38]} 23. Rfb1 {[%emt 0:00:37]} a4 {[%emt 0:06:32]} 24. Ra2 {[%emt 0:07:49]} Qd6 {[%emt 0:06:17]} 25. Qc2 {[%emt 0:01:15]} Rb8 {[%emt 0:01:58]} 26. Rab2 {[%emt 0:02:05]} Rxb2 {[%emt 0:03:08]} 27. Rxb2 {[%emt 0:01:15]} Qd4 {[%emt 0:00:54]} 28. Rb5 {[%emt 0:01:01]} Qa1+ {[%emt 0:02:33]} 29. Kg2 {[%emt 0:01:05]} Qxa3 {[%emt 0:00:14]} 30. Ra5 {[%emt 0:00:10]} Qb3 {[%emt 0:02:28]} 31. Qxb3 {[%emt 0:01:15]} axb3 {[%emt 0:00:14]} 32. Rb5 {[%emt 0:00:01]} Rc8 {[%emt 0:04:40]} 33. Kf3 {[%emt 0:01:40]} Kf8 {[%emt 0:00:19]} 34. Rxb3 {[%emt 0:00:58]} Ke7 {[%emt 0:00:34]} 35. Rd3 {[%emt 0:01:53]} Ra8 {[%emt 0:02:26]} 36. Rd5 {[%emt 0:01:54]} Ra5 {[%emt 0:00:03]} 37. h4 {[%emt 0:04:10]} Ke6 {[%emt 0:00:32]} 38. Ke4 {[%emt 0:03:05]} g6 {[%emt 0:03:04]} 39. g4 {[%emt 0:00:50]} h6 {[%emt 0:00:16]} 40. f4 {[%emt 0:00:56]} Ke7 {[%emt 0:03:16]} 41. h5 {[%emt 0:02:33]} Kf8 {[%emt 0:02:13]} (41... Ke6 $16 {might work better.} 42. Re5+ Kd7 43. hxg6 fxg6) 42. Rd6 {[%emt 0:02:15]} gxh5 {[%emt 0:00:27]} 43. gxh5 {[%emt 0:00:17]} Kg7 $2 {[%emt 0:01:05]} (43... Ra1 44. Rc6 (44. Rxh6 Rh1 $16) 44... Re1+ 45. Kf5 Kg7 46. Rxc5 Rh1) 44. f5 {[%emt 0:00:14]} (44. Kd5 $142) 44... Ra1 {[%emt 0:00:31]} 45. f6+ {[%emt 0:00:19]} Kg8 {[%emt 0:00:30]} 46. Rd8+ {[%emt 0:02:51]} Kh7 {[%emt 0:00:04]} 47. Rf8 $2 {[%emt 0:00:25]} (47. Rd7 $18) 47... Rh1 $2 {[%emt 0:00:34]} (47... Re1+ $1 $11 {and Black stays safe.} 48. Kd5 Re5+ 49. Kd6 Re6+ 50. Kxc5 Rc6+ 51. Kd4 Rxc4+ 52. Ke5 Rc5+ 53. Kd6 Rd5+ 54. Ke7 Re5+ 55. Kxf7 Re7+ 56. fxe7) 48. Rxf7+ {[%emt 0:00:51]} Kg8 {[%emt 0:01:00]} 49. Rg7+ {[%emt 0:00:38]} Kf8 {[%emt 0:00:06]} 50. Ke5 {[%emt 0:04:48]} Rxh5+ {[%emt 0:00:21] [#]} 51. Ke6 $1 {[%emt 0:00:08]} Rh1 {[%emt 0:00:19] [#]} 52. Rf7+ $2 {[%emt 0:02:15]} (52. Rh7 $1 $18 {[%cal Rh7h8][%mdl 512]} Re1+ 53. Kd6) 52... Ke8 {[%emt 0:00:29]} 53. Rh7 {[%emt 0:00:30]} Re1+ {[%emt 0:00:08]} 54. Kd6 {[%emt 0:00:09]} Rf1 {[%emt 0:00:33]} 55. Rxh6 {[%emt 0:01:28]} Kf7 {[%emt 0:00:04]} 56. Kxc5 {[%emt 0:00:08]} Rc1 {[%emt 0:00:32]} 57. Kd5 {[%emt 0:00:09]} Rf1 {[%emt 0:00:30]} 58. c5 {[%emt 0:00:21]} Rd1+ {[%emt 0:00:11]} 59. Kc6 {[%emt 0:00:09]} Ke6 {[%emt 0:00:11]} 60. Kb6 {[%emt 0:01:59]} Rb1+ {[%emt 0:00:07]} 61. Kc7 {[%emt 0:00:17]} Rc1 {[%emt 0:00:36]} 62. c6 {[%emt 0:00:08]} Rc2 {[%emt 0:00:38]} 63. Kb7 {[%emt 0:00:47]} Rb2+ {[%emt 0:00:03]} 64. Kc8 {[%emt 0:00:11]} Rc2 {[%emt 0:00:26]} 65. c7 {[%emt 0:00:36]} Kf7 {[%emt 0:00:32]} 66. Rh7+ {[%emt 0:00:48]} Kxf6 {[%emt 0:00:02]} 67. Kd8 {[%emt 0:00:34]} 1-0

[Event "Gibraltar Amateurs B 2020"]
[Site "Caleta"]
[Date "2020.01.27"]
[Round "3.8"]
[White "Guardia Bencomo, Tomas"]
[Black "Teh, Wee Zhun"]
[Result "0-1"]
[ECO "B11"]
[WhiteElo "1660"]
[BlackElo "1857"]
[Annotator "NA"]
[PlyCount "148"]
[EventDate "2020.01.20"]
[EventType "swiss"]
[EventCountry "GGB"]
[SourceTitle "playchess.com"]
[Source "ChessBase"]
[SourceQuality "1"]
[TimeControl "6600+10"]

1. e4 {[%emt 0:00:01]} c6 {[%emt 0:00:10]} 2. Nc3 {[%emt 0:00:24]} d5 {[%emt 0:00:06]} 3. Nf3 {[%emt 0:00:36]} Bg4 {[%emt 0:00:15]} 4. h3 {[%emt 0:00:55]} Bxf3 {[%emt 0:00:18]} 5. Qxf3 {[%emt 0:00:09]} Nf6 {[%emt 0:01:25]} 6. d4 {[%emt 0:01:58]} dxe4 {[%emt 0:04:53]} 7. Qe3 {[%emt 0:06:01]} e6 {[%emt 0:05:26]} 8. Nxe4 {[%emt 0:00:12]} Nxe4 {[%emt 0:01:55]} 9. Qxe4 {[%emt 0:00:14]} Nd7 {[%emt 0:00:28]} 10. Bd3 {[%emt 0:03:53]} Nf6 {[%emt 0:00:56]} 11. Qh4 {[%emt 0:01:49]} Qa5+ {[%emt 0:05:07]} 12. c3 {[%emt 0:02:11]} Be7 {[%emt 0:02:01]} 13. Bd2 {[%emt 0:06:57]} Rd8 {[%emt 0:04:18]} 14. Bc4 {[%emt 0:05:40]} Qh5 {[%emt 0:02:20]} 15. Qxh5 {[%emt 0:03:00]} Nxh5 {[%emt 0:00:04]} 16. O-O-O {[%emt 0:00:50]} Nf6 {[%emt 0:03:16]} 17. Rhe1 {[%emt 0:00:51]} O-O {[%emt 0:00:11]} 18. Re2 {[%emt 0:01:56]} Nd5 {[%emt 0:02:06]} 19. a3 {[%emt 0:01:13]} Bd6 {[%emt 0:00:23]} 20. g3 {[%emt 0:00:50]} Rfe8 {[%emt 0:00:40]} 21. Rde1 {[%emt 0:00:38]} Be7 {[%emt 0:00:37]} 22. Kc2 {[%emt 0:02:38]} a6 {[%emt 0:01:27]} 23. h4 {[%emt 0:02:39]} h6 {[%emt 0:01:52]} 24. f4 {[%emt 0:05:14]} Kf8 {[%emt 0:02:00]} 25. Bxd5 {[%emt 0:04:26]} exd5 {[%emt 0:05:20]} 26. a4 {[%emt 0:01:48]} Bd6 {[%emt 0:00:26]} 27. b4 {[%emt 0:01:12]} Rxe2 {[%emt 0:00:38]} 28. Rxe2 {[%emt 0:00:34]} Re8 {[%emt 0:00:44]} 29. Rxe8+ {[%emt 0:00:27]} Kxe8 {[%emt 0:00:02]} 30. a5 {[%emt 0:00:14]} h5 {[%emt 0:03:10]} 31. Kd3 {[%emt 0:01:03]} Ke7 {[%emt 0:00:27]} 32. Ke3 {[%emt 0:04:42]} Ke6 {[%emt 0:00:10]} 33. Kf3 {[%emt 0:00:41]} Kf5 {[%emt 0:00:12]} 34. Be1 {[%emt 0:00:24]} Be7 {[%emt 0:00:16]} 35. Bd2 {[%emt 0:00:30]} Bd8 {[%emt 0:00:27]} 36. Be1 {[%emt 0:00:11]} g6 {[%emt 0:00:56]} 37. Bd2 {[%emt 0:01:46]} Ke6 {[%emt 0:01:46]} 38. Ke2 {[%emt 0:00:25]} Kd6 {[%emt 0:00:35]} 39. Kd3 {[%emt 0:01:24]} Be7 {[%emt 0:00:41]} 40. Be1 {[%emt 0:01:14]} Kd7 {[%emt 0:00:30]} 41. Kd2 {[%emt 0:00:18]} Bd6 {[%emt 0:01:14]} 42. Kd3 {[%emt 0:00:16]} Kd8 {[%emt 0:00:40]} 43. Kd2 {[%emt 0:00:27]} Kc7 {[%emt 0:00:25]} 44. Kc2 {[%emt 0:00:16]} Be7 {[%emt 0:01:40]} 45. Bd2 {[%emt 0:01:53]} Bd8 {[%emt 0:00:41]} 46. Be1 {[%emt 0:00:09]} b6 {[%emt 0:00:41]} 47. axb6+ {[%emt 0:00:19]} Kxb6 {[%emt 0:00:02]} 48. Kb3 {[%emt 0:00:41]} Kb5 {[%emt 0:00:52]} 49. Bd2 {[%emt 0:00:35]} Be7 {[%emt 0:00:54]} 50. Be1 {[%emt 0:00:25]} Bd8 {[%emt 0:01:45]} 51. Bd2 {[%emt 0:00:28]} Bb6 {[%emt 0:02:05]} 52. Be3 {[%emt 0:00:40]} Bc7 {[%emt 0:00:28]} 53. Bf2 {[%emt 0:00:53]} Kb6 {[%emt 0:00:23]} 54. Ka4 {[%emt 0:03:58]} Bd8 {[%emt 0:01:28]} 55. Kb3 {[%emt 0:01:08]} Kc7 {[%emt 0:00:27]} 56. Kc2 {[%emt 0:00:05]} Kd6 {[%emt 0:00:08]} 57. Kd3 {[%emt 0:00:07]} Ke6 {[%emt 0:00:05]} 58. Ke3 {[%emt 0:00:02]} a5 {[%emt 0:00:31]} 59. bxa5 {[%emt 0:00:07]} Bxa5 {[%emt 0:00:01]} 60. Be1 $1 {[%emt 0:00:14]} Bb6 {[%emt 0:00:18]} 61. Ke2 {[%emt 0:02:49]} Kf5 {[%emt 0:02:40]} 62. Kf3 $1 {[%emt 0:00:14]} c5 {[%emt 0:02:14]} 63. Bf2 {[%emt 0:00:29]} c4 {[%emt 0:06:28]} 64. Be1 {[%emt 0:00:49]} Bd8 {[%emt 0:00:20]} 65. Bf2 {[%emt 0:00:19]} Be7 {[%emt 0:00:25]} 66. Be3 {[%emt 0:00:49]} Ba3 {[%emt 0:00:19]} 67. Bd2 {[%emt 0:00:23]} Bb2 {[%emt 0:00:05]} 68. Be1 {[%emt 0:02:18]} Bc1 {[%emt 0:00:14]} 69. Ke2 {[%emt 0:00:36]} Ke4 {[%emt 0:00:46]} 70. Kd1 {[%emt 0:00:20] [#]} Be3 $1 {[%emt 0:00:26]} 71. Ke2 {[%emt 0:00:26]} f6 {[%emt 0:00:21]} 72. Bf2 {[%emt 0:01:01]} Bxf2 {[%emt 0:00:45]} 73. Kxf2 {[%emt 0:00:04]} Kd3 {[%emt 0:00:12]} 74. f5 {[%emt 0:00:07]} gxf5 {[%emt 0:00:20]} 0-1

[Event "Gibraltar Amateurs B 2020"]
[Site "Caleta"]
[Date "2020.01.27"]
[Round "3.9"]
[White "Nash, Damian"]
[Black "Boghi, Victor Almeida"]
[Result "1-0"]
[ECO "B07"]
[WhiteElo "1890"]
[BlackElo "1679"]
[Annotator "NA"]
[PlyCount "41"]
[EventDate "2020.01.20"]
[EventType "swiss"]
[EventCountry "GGB"]
[SourceTitle "playchess.com"]
[Source "ChessBase"]
[SourceQuality "1"]
[TimeControl "6600+10"]

1. e4 {[%emt 0:04:05]} g6 {[%emt 0:00:02]} 2. d4 {[%emt 0:01:31]} Bg7 {[%emt 0:00:08]} 3. Be3 {[%emt 0:03:18]} d6 {[%emt 0:00:44]} 4. Nc3 {[%emt 0:00:51]} Nf6 {[%emt 0:01:17]} 5. h3 {[%emt 0:03:18]} O-O {[%emt 0:00:43]} 6. Qd2 {[%emt 0:01:42]} e5 {[%emt 0:00:46]} 7. O-O-O {[%emt 0:00:48]} exd4 {[%emt 0:00:35]} 8. Bxd4 {[%emt 0:00:40]} Re8 {[%emt 0:02:23]} 9. f3 {[%emt 0:02:47]} Nc6 {[%emt 0:00:29]} 10. Be3 {[%emt 0:01:19]} Be6 {[%emt 0:02:02]} 11. g4 {[%emt 0:02:40]} Ne5 {[%emt 0:01:16]} 12. h4 {[%emt 0:02:05]} h5 {[%emt 0:02:06]} 13. gxh5 {[%emt 0:05:57]} Nxh5 {[%emt 0:00:31]} 14. Bg5 {[%emt 0:02:22]} f6 {[%emt 0:02:52]} 15. Bh6 {[%emt 0:01:23]} Ng3 {[%emt 0:03:11]} 16. Bxg7 {[%emt 0:10:45]} Nxh1 $15 {[%emt 0:03:06]} 17. Qh6 {[%emt 0:04:43]} Re7 {[%emt 0:04:17]} 18. Bxf6 {[%emt 0:01:37]} Rh7 {[%emt 0:01:23]} 19. Qg5 {[%emt 0:02:09]} Rh5 {[%emt 0:02:10]} 20. Bxd8 {[%emt 0:01:31]} Rh7 {[%emt 0:00:04]} 21. Bf6 {[%emt 0:00:00]} 1-0

[Event "Gibraltar Amateurs B 2020"]
[Site "Caleta"]
[Date "2020.01.27"]
[Round "3.10"]
[White "Martos Martin, Jose Angel"]
[Black "Dhanwani, Aryan"]
[Result "1-0"]
[ECO "B12"]
[WhiteElo "1841"]
[BlackElo "1360"]
[Annotator "NA"]
[PlyCount "129"]
[EventDate "2020.01.20"]
[EventType "swiss"]
[EventCountry "GGB"]
[SourceTitle "playchess.com"]
[Source "ChessBase"]
[SourceQuality "1"]
[TimeControl "6600+10"]

1. e4 {[%emt 0:12:50]} c6 {[%emt 0:00:06]} 2. d4 {[%emt 0:00:39]} d5 {[%emt 0:00:08]} 3. e5 {[%emt 0:00:06]} Bf5 {[%emt 0:00:17]} 4. g4 {[%emt 0:00:20]} Bg6 {[%emt 0:00:58]} 5. h4 {[%emt 0:00:22]} h5 {[%emt 0:00:59]} 6. e6 {[%emt 0:01:22] B12: Caro-Kann: Advance Variation} fxe6 {[%emt 0:10:08]} (6... Qd6 7. exf7+ Bxf7 8. g5 e5 9. Nf3 exd4 10. Qxd4 Be6 11. Nc3 Nd7 12. Bf4 Qc5 13. O-O-O O-O-O {1-0 (23) Ponkratov,P (2630)-Galaktionov,A (2271) Moscow 2019}) 7. Bd3 {[%emt 0:01:03]} Bf7 {[%emt 0:01:24]} 8. g5 {[%emt 0:00:12]} g6 {[%emt 0:01:15]} 9. c3 $146 {[%emt 0:04:44]} ({Predecessor:} 9. Nf3 Nd7 10. Bf4 Bg7 11. c3 e5 12. dxe5 e6 13. O-O Ne7 {1-0 (63) Deus Filho,J (1892)-Do Souto,M (1606) Juiz de Fora 2015}) 9... Nd7 {[%emt 0:03:10]} (9... e5 $1 $11 {remains equal.}) 10. Qc2 {[%emt 0:01:20]} e5 {[%emt 0:16:20]} 11. Bxg6 {[%emt 0:00:27]} e4 {[%emt 0:00:13]} 12. Bxf7+ {[%emt 0:03:57]} Kxf7 {[%emt 0:00:14]} 13. Ne2 {[%emt 0:02:42]} e5 {[%emt 0:07:13]} 14. O-O {[%emt 0:10:26]} Qc8 {[%emt 0:21:37]} 15. Ng3 {[%emt 0:10:26]} (15. f3 $142) 15... Ndf6 {[%emt 0:15:51]} 16. f3 {[%emt 0:07:06]} Qh3 {[%emt 0:04:13]} 17. Qh2 {[%emt 0:01:52]} Qxh2+ {[%emt 0:01:48]} 18. Kxh2 {[%emt 0:00:02]} Nd7 {[%emt 0:01:03]} 19. fxe4+ {[%emt 0:02:55]} Kg6 {[%emt 0:04:04]} 20. Be3 {[%emt 0:05:35]} Ne7 {[%emt 0:03:33]} 21. Nd2 {[%emt 0:02:07]} Bg7 {[%emt 0:02:50]} 22. Nf5 {[%emt 0:11:47]} Nxf5 {[%emt 0:03:11]} 23. exf5+ {[%emt 0:00:16]} Kf7 {[%emt 0:00:34]} 24. Rg1 {[%emt 0:15:07]} Rhg8 {[%emt 0:06:05]} 25. Raf1 {[%emt 0:04:34]} e4 {[%emt 0:02:54]} 26. Re1 {[%emt 0:04:27]} b6 {[%emt 0:01:33]} 27. Nf1 {[%emt 0:00:20]} c5 {[%emt 0:00:07]} 28. Ng3 {[%emt 0:00:12]} Rh8 {[%emt 0:00:57]} 29. Rgf1 {[%emt 0:03:37]} Bf8 {[%emt 0:00:55]} 30. f6 {[%emt 0:00:59]} Bd6 {[%emt 0:00:10]} 31. Kh3 {[%emt 0:00:27]} Bxg3 {[%emt 0:00:23]} 32. Kxg3 {[%emt 0:00:02]} c4 $2 {[%emt 0:00:01]} (32... cxd4 33. Bxd4 Nf8) 33. Rf5 {[%emt 0:01:24]} Rag8 {[%emt 0:00:24]} 34. Ref1 {[%emt 0:00:24]} Rh6 {[%emt 0:00:11]} 35. Kh3 {[%emt 0:00:11]} Rhg6 {[%emt 0:00:04]} 36. Rxd5 {[%emt 0:00:40]} Ke6 {[%emt 0:00:07]} 37. Rdf5 {[%emt 0:00:12]} Rf8 {[%emt 0:00:35]} 38. d5+ {[%emt 0:00:39]} Kd6 {[%emt 0:00:17]} 39. Bf4+ {[%emt 0:00:20]} Kc5 {[%emt 0:00:01]} 40. Be5 {[%emt 0:00:18]} Nxe5 {[%emt 0:00:02]} 41. Rxe5 {[%emt 0:00:02]} Kd6 {[%emt 0:00:01]} 42. Ref5 {[%emt 0:00:02]} b5 {[%emt 0:00:04]} 43. Re1 {[%emt 0:00:08]} a5 {[%emt 0:00:17]} 44. Rxe4 {[%emt 0:00:02]} Rgg8 {[%emt 0:00:06]} 45. Re6+ {[%emt 0:00:11]} Kc7 {[%emt 0:00:04]} 46. f7 {[%emt 0:00:17]} Rg7 {[%emt 0:00:10]} 47. g6 {[%emt 0:00:14]} Kd7 {[%emt 0:00:08]} 48. Rxh5 {[%emt 0:00:09]} b4 {[%emt 0:00:03]} 49. Rf6 {[%emt 0:00:04]} bxc3 {[%emt 0:00:04]} 50. bxc3 {[%emt 0:00:01]} Ke7 {[%emt 0:00:02]} 51. Ra6 {[%emt 0:00:06]} a4 {[%emt 0:00:05]} 52. Rf5 {[%emt 0:00:09]} Kd7 {[%emt 0:00:06]} 53. Rff6 {[%emt 0:00:08]} Kc7 {[%emt 0:00:06]} 54. Rac6+ {[%emt 0:00:05]} Kd7 {[%emt 0:00:03]} 55. Rxc4 {[%emt 0:00:03]} Ke7 {[%emt 0:00:05]} 56. Rcf4 {[%emt 0:00:04]} Kd7 {[%emt 0:00:08]} 57. Rxa4 {[%emt 0:00:06]} Ke7 {[%emt 0:00:01]} 58. Raf4 {[%emt 0:00:02]} Kd7 {[%emt 0:00:16]} 59. c4 {[%emt 0:00:04]} Ke7 {[%emt 0:00:04]} 60. c5 {[%emt 0:00:03]} Kd7 {[%emt 0:00:01]} 61. c6+ {[%emt 0:00:06]} Kc7 {[%emt 0:00:03]} 62. h5 {[%emt 0:00:12]} Kd8 {[%emt 0:00:03]} 63. Kg4 {[%emt 0:00:13]} Ke7 {[%emt 0:00:06]} 64. d6+ {[%emt 0:00:07]} Kd8 {[%emt 0:00:05]} 65. Ra4 {[%emt 0:00:02]} 1-0

[Event "Gibraltar Amateurs B 2020"]
[Site "Caleta"]
[Date "2020.01.27"]
[Round "3.11"]
[White "Coric, Gojko"]
[Black "Campuzano, Franco"]
[Result "0-1"]
[ECO "E61"]
[WhiteElo "1704"]
[BlackElo "1785"]
[Annotator "NA"]
[PlyCount "86"]
[EventDate "2020.01.20"]
[EventType "swiss"]
[EventCountry "GGB"]
[SourceTitle "playchess.com"]
[Source "ChessBase"]
[SourceQuality "1"]
[TimeControl "6600+10"]

1. d4 {[%emt 0:53:34]} Nf6 {[%emt 0:02:03]} 2. Nf3 {[%emt 0:00:52]} g6 {[%emt 0:00:17]} 3. c4 {[%emt 0:00:15]} Bg7 {[%emt 0:00:11]} 4. Nc3 {[%emt 0:00:20]} O-O {[%emt 0:00:10]} 5. Bf4 {[%emt 0:00:09]} d6 {[%emt 0:00:22]} 6. e3 {[%emt 0:01:18]} Nbd7 {[%emt 0:00:57]} 7. Be2 {[%emt 0:00:30]} b6 {[%emt 0:01:03]} 8. O-O {[%emt 0:00:15]} Bb7 {[%emt 0:00:04]} 9. h3 {[%emt 0:00:23]} c5 {[%emt 0:03:16]} 10. d5 {[%emt 0:02:51]} Ne8 {[%emt 0:01:43]} 11. Rc1 {[%emt 0:01:20]} Ne5 {[%emt 0:01:36]} 12. Bg3 {[%emt 0:03:26]} e6 {[%emt 0:06:31]} 13. Nxe5 {[%emt 0:06:06]} Bxe5 {[%emt 0:01:49]} 14. Bxe5 {[%emt 0:00:53]} dxe5 {[%emt 0:00:08]} 15. dxe6 {[%emt 0:00:04]} fxe6 {[%emt 0:00:28]} 16. Qxd8 {[%emt 0:00:10]} Rxd8 {[%emt 0:00:10]} 17. Rcd1 {[%emt 0:00:40]} Nc7 {[%emt 0:02:31]} 18. a3 {[%emt 0:03:18]} Kf7 {[%emt 0:01:55]} 19. Nb1 {[%emt 0:03:01]} Be4 {[%emt 0:02:13]} 20. f4 {[%emt 0:01:15]} Bxb1 {[%emt 0:03:25]} 21. fxe5+ {[%emt 0:00:05]} Bf5 {[%emt 0:00:20]} 22. g4 {[%emt 0:00:01]} Rxd1 {[%emt 0:02:18]} 23. Bxd1 {[%emt 0:00:02]} Ke7 {[%emt 0:00:46]} 24. gxf5 {[%emt 0:00:04]} exf5 {[%emt 0:00:32]} 25. Bf3 {[%emt 0:00:07]} Rd8 {[%emt 0:01:29]} 26. Rf2 {[%emt 0:04:29]} Ke6 {[%emt 0:01:00]} 27. b4 {[%emt 0:01:56]} Na6 {[%emt 0:00:54]} 28. Bd5+ {[%emt 0:00:27]} Kxe5 {[%emt 0:00:16]} 29. Rb2 {[%emt 0:00:07]} cxb4 {[%emt 0:01:27]} 30. axb4 {[%emt 0:00:06]} b5 {[%emt 0:01:08]} 31. Bb7 {[%emt 0:02:07]} Nc7 {[%emt 0:01:20]} 32. c5 {[%emt 0:00:37]} Rd3 {[%emt 0:02:48]} 33. Kf2 {[%emt 0:00:36]} Nd5 {[%emt 0:05:36]} 34. c6 {[%emt 0:09:06]} Kd6 {[%emt 0:01:01]} 35. Ra2 {[%emt 0:04:06]} Nxb4 {[%emt 0:01:35]} 36. Rxa7 {[%emt 0:00:24]} Nxc6 {[%emt 0:04:32]} 37. Bxc6 {[%emt 0:00:04]} Kxc6 {[%emt 0:00:15]} 38. Rxh7 {[%emt 0:00:03]} b4 {[%emt 0:00:15]} 39. Ke2 Rd6 {[%emt 0:00:04]} 40. Ra7 {[%emt 0:00:34]} Kb6 {[%emt 0:00:58]} 41. Ra8 {[%emt 0:02:01]} Kb5 {[%emt 0:00:11]} 42. Kf3 {[%emt 0:00:24]} b3 {[%emt 0:00:24]} 43. Ke2 {[%emt 0:01:42]} b2 {[%emt 0:00:11]} 0-1

[Event "Gibraltar Amateurs B 2020"]
[Site "Caleta"]
[Date "2020.01.27"]
[Round "4.1"]
[White "Marani, Luca"]
[Black "Nwachukwu, Chino"]
[Result "0-1"]
[ECO "B81"]
[WhiteElo "1796"]
[BlackElo "1868"]
[Annotator "NA"]
[PlyCount "88"]
[EventDate "2020.01.20"]
[EventType "swiss"]
[EventCountry "GGB"]
[SourceTitle "playchess.com"]
[Source "ChessBase"]
[SourceQuality "1"]
[TimeControl "6600+10"]

1. e4 {[%emt 0:13:05]} c5 {[%emt 0:00:00]} 2. Nf3 {[%emt 0:00:13]} d6 {[%emt 0:00:00]} 3. d4 {[%emt 0:00:31]} cxd4 {[%emt 0:00:05]} 4. Nxd4 {[%emt 0:00:10]} Nf6 {[%emt 0:00:05]} 5. Nc3 {[%emt 0:00:13]} a6 {[%emt 0:00:04]} 6. h3 {[%emt 0:00:15]} e6 {[%emt 0:00:07]} 7. g4 {[%emt 0:00:07]} Be7 {[%emt 0:00:11]} 8. Bg2 {[%emt 0:01:57]} Nc6 {[%emt 0:01:43]} 9. Be3 {[%emt 0:00:08]} Nxd4 {[%emt 0:04:28] B81: Sicilian Scheveningen: Keres Attack} (9... Nd7 10. h4 Qc7 11. Qe2 Nce5 12. O-O-O Nc4 13. f4 Nxe3 14. Qxe3 O-O 15. g5 Re8 16. h5 Nf8 17. Kb1 {1-0 (44) Duda,J (2603)-Kempinski,R (2626) Wroclaw 2014}) 10. Qxd4 {[%emt 0:00:22]} e5 {[%emt 0:03:42]} 11. Qd2 {[%emt 0:00:36]} Be6 {[%emt 0:00:15]} 12. O-O {[%emt 0:12:54]} O-O {[%emt 0:02:22]} 13. g5 $146 {[%emt 0:01:49]} ({Predecessor:} 13. Kh1 Rc8 14. a4 Rc4 15. b3 Rc8 16. Rfc1 Qc7 17. Na2 {1-0 (38) Borge,N (2360)-Rytshagov,M (2525) Groningen 1997}) 13... Nh5 $1 {[%emt 0:08:15]} 14. Nd5 {[%emt 0:08:17]} Bxd5 {[%emt 0:02:15]} 15. exd5 {[%emt 0:00:19]} Rc8 {[%emt 0:00:17]} 16. Bf3 {[%emt 0:04:30]} Nf4 {[%emt 0:13:28]} 17. h4 $2 {[%emt 0:17:13]} (17. Bxf4 $15 exf4 18. h4) 17... Ng6 {[%emt 0:14:33]} 18. h5 {[%emt 0:03:24]} Nf4 {[%emt 0:00:05]} 19. Bxf4 {[%emt 0:06:31]} exf4 {[%emt 0:00:06]} 20. Bg4 {[%emt 0:00:46]} Rc5 {[%emt 0:04:21]} 21. g6 {[%emt 0:01:33]} f5 {[%emt 0:01:54]} 22. gxh7+ {[%emt 0:00:56]} Kh8 {[%emt 0:00:13]} 23. Bf3 {[%emt 0:05:06]} Bf6 {[%emt 0:01:01]} 24. c3 {[%emt 0:03:07]} Be5 {[%emt 0:00:15]} 25. Rfe1 {[%emt 0:04:05]} Qh4 {[%emt 0:02:22]} 26. Kg2 {[%emt 0:00:01]} Kxh7 {[%emt 0:04:04]} 27. Rh1 {[%emt 0:02:23]} Qf6 {[%emt 0:00:14]} 28. Rag1 {[%emt 0:00:54]} Qd8 {[%emt 0:07:14]} 29. Kf1 {[%emt 0:01:39]} Rf6 {[%emt 0:00:22]} 30. Qc2 {[%emt 0:01:21]} Qc8 {[%emt 0:04:20]} 31. Rg5 {[%emt 0:04:14]} b5 {[%emt 0:02:03]} 32. Bg4 {[%emt 0:00:49]} Kh6 $2 {[%emt 0:10:01]} (32... Kh8 33. Rxf5 (33. Bxf5 Qf8 $18) 33... Qd8 34. Rxf6 Qxf6) 33. Rxf5 {[%emt 0:03:24]} Rxf5 {[%emt 0:00:18]} 34. Bxf5 {[%emt 0:00:22]} Qd8 {[%emt 0:06:28]} 35. Be6 {[%emt 0:01:26]} Qf6 {[%emt 0:01:44]} 36. Rg1 {[%emt 0:01:17]} g5 {[%emt 0:02:26]} 37. hxg6 {[%emt 0:00:18]} Kg7 {[%emt 0:00:01]} 38. Rh1 {[%emt 0:02:01]} Qg5 {[%emt 0:00:40]} 39. Rh7+ {[%emt 0:01:04]} Kf8 {[%emt 0:00:07]} 40. Rf7+ {[%emt 0:00:56]} Ke8 {[%emt 0:00:07] [#]} 41. Qe4 $18 {[%emt 0:01:53]} (41. g7 $142 $1 Rxd5 (41... Bxg7 42. Qh7) 42. Qh7 Rd1+ 43. Ke2 Re1+ {[%mdl 64] Decoy} 44. Kxe1 Qg1+ 45. Ke2 Qxg7 46. Rxg7) 41... Rc4 {[%emt 0:00:54]} 42. Qh1 {[%emt 0:00:25]} Qxg6 {[%emt 0:00:57]} 43. Qh4 {[%emt 0:00:57]} Qb1+ {[%emt 0:00:24]} 44. Kg2 {[%emt 0:00:18]} f3+ {[%emt 0:00:19] Kg1} 0-1